[Event "Late-Titled-Tuesday-Blitz-February-20-2024"]
[Site "Chess.com"]
[Date "2024.02.20"]
[Round "3"]
[White "northridgehawk"]
[Black "ninguno46"]
[Result "1-0"]
[WhiteElo "2269"]
[BlackElo "2511"]
[TimeControl "180+1"]
[EndTime "14:25:17 PST"]
[Termination "northridgehawk won by resignation"]

1. e4 {[%clk 0:02:59.9]} 1... c5 {[%clk 0:02:59.3]} 2. d3 {[%clk 0:02:58.7]}
2... Nc6 {[%clk 0:02:59]} 3. Nd2 {[%clk 0:02:59]} 3... g6 {[%clk 0:02:59.5]} 4.
Ngf3 {[%clk 0:02:59.3]} 4... Bg7 {[%clk 0:03:00.1]} 5. c3 {[%clk 0:02:58.9]}
5... e6 {[%clk 0:03:00.5]} 6. g3 {[%clk 0:02:59.1]} 6... Nge7 {[%clk 0:03:00.9]}
7. Bg2 {[%clk 0:02:59.4]} 7... d5 {[%clk 0:03:00.5]} 8. O-O {[%clk 0:02:59.3]}
8... O-O {[%clk 0:02:59.6]} 9. Qe2 {[%clk 0:02:58.8]} 9... e5 {[%clk 0:02:56.3]}
10. h4 {[%clk 0:02:58]} 10... h6 {[%clk 0:02:55.6]} 11. Rd1 {[%clk 0:02:54.8]}
11... d4 {[%clk 0:02:54.7]} 12. Nf1 {[%clk 0:02:54.8]} 12... b5 {[%clk
0:02:50.5]} 13. N1h2 {[%clk 0:02:54.1]} 13... Rb8 {[%clk 0:02:44]} 14. a3 {[%clk
0:02:53.4]} 14... a5 {[%clk 0:02:42.5]} 15. Bd2 {[%clk 0:02:53.4]} 15... dxc3
{[%clk 0:02:41.7]} 16. Bxc3 {[%clk 0:02:50.3]} 16... b4 {[%clk 0:02:41.5]} 17.
axb4 {[%clk 0:02:49.9]} 17... cxb4 {[%clk 0:02:36.7]} 18. Be1 {[%clk 0:02:47.5]}
18... Ba6 {[%clk 0:02:36.2]} 19. Qe3 {[%clk 0:02:44]} 19... Qd6 {[%clk
0:02:33.6]} 20. Ng4 {[%clk 0:02:35.9]} 20... Kh7 {[%clk 0:02:32]} 21. h5 {[%clk
0:02:29.5]} 21... g5 {[%clk 0:02:26.9]} 22. Rac1 {[%clk 0:02:25.1]} 22... f5
{[%clk 0:02:22.2]} 23. exf5 {[%clk 0:02:24.7]} 23... Nxf5 {[%clk 0:02:13.3]} 24.
Qe4 {[%clk 0:02:16]} 24... Bb5 {[%clk 0:02:10.2]} 25. Ne3 {[%clk 0:01:58.4]}
25... Ne7 {[%clk 0:01:43.4]} 26. g4 {[%clk 0:01:57.9]} 26... Kh8 {[%clk
0:01:18.3]} 27. gxf5 {[%clk 0:01:56.3]} 27... Bc6 {[%clk 0:01:14.5]} 28. Qg4
{[%clk 0:01:52.7]} 28... Ng8 {[%clk 0:01:07]} 29. Nc4 {[%clk 0:01:52.1]} 29...
Qe7 {[%clk 0:00:59.4]} 30. Ncxe5 {[%clk 0:01:45.6]} 30... Bxe5 {[%clk
0:00:58.7]} 31. Nxe5 {[%clk 0:01:42.2]} 31... Qxe5 {[%clk 0:00:58.5]} 32. Rxc6
{[%clk 0:01:41.5]} 32... Nf6 {[%clk 0:00:59]} 33. Qg3 {[%clk 0:01:32.3]} 33...
Qxf5 {[%clk 0:00:58.3]} 34. Be4 {[%clk 0:01:24.4]} 34... Qb5 {[%clk 0:00:46.5]}
35. Rxf6 {[%clk 0:01:21.9]} 1-0

[Event "Late-Titled-Tuesday-Blitz-February-20-2024"]
[Site "Chess.com"]
[Date "2024.02.20"]
[Round "3"]
[White "Marcin"]
[Black "BebeBonito2022"]
[Result "1-0"]
[WhiteElo "2513"]
[BlackElo "2308"]
[TimeControl "180+1"]
[EndTime "14:25:18 PST"]
[Termination "Marcin won on time"]

1. Nf3 {[%clk 0:03:00.9]} 1... Nc6 {[%clk 0:02:59.2]} 2. e4 {[%clk 0:02:58.8]}
2... e5 {[%clk 0:02:58.9]} 3. d4 {[%clk 0:02:57.9]} 3... exd4 {[%clk 0:02:59]}
4. Nxd4 {[%clk 0:02:58.8]} 4... Nf6 {[%clk 0:02:59.2]} 5. Nc3 {[%clk 0:02:58.4]}
5... Bb4 {[%clk 0:02:59]} 6. Nxc6 {[%clk 0:02:58.7]} 6... bxc6 {[%clk 0:02:59]}
7. Bd3 {[%clk 0:02:59.2]} 7... d5 {[%clk 0:02:57.8]} 8. exd5 {[%clk 0:02:59.4]}
8... cxd5 {[%clk 0:02:58.2]} 9. O-O {[%clk 0:02:59.4]} 9... O-O {[%clk
0:02:58.4]} 10. Bg5 {[%clk 0:02:59.9]} 10... Be6 {[%clk 0:02:58.4]} 11. Qf3
{[%clk 0:02:58]} 11... Be7 {[%clk 0:02:52.5]} 12. h3 {[%clk 0:02:58]} 12... Rb8
{[%clk 0:02:52.4]} 13. b3 {[%clk 0:02:56.2]} 13... Re8 {[%clk 0:02:52.5]} 14.
Rad1 {[%clk 0:02:55.1]} 14... c6 {[%clk 0:02:46.3]} 15. Rfe1 {[%clk 0:02:54.5]}
15... Qa5 {[%clk 0:02:42.3]} 16. Ne2 {[%clk 0:02:36.6]} 16... c5 {[%clk
0:02:16.8]} 17. Nf4 {[%clk 0:02:31]} 17... c4 {[%clk 0:02:11]} 18. Nxe6 {[%clk
0:02:00.4]} 18... cxd3 {[%clk 0:02:08]} 19. Nxg7 {[%clk 0:02:00.3]} 19... dxc2
{[%clk 0:01:58.9]} 20. Rc1 {[%clk 0:02:00.5]} 20... Kxg7 {[%clk 0:01:58.1]} 21.
Rxe7 {[%clk 0:02:00.5]} 21... Rxe7 {[%clk 0:01:02.9]} 22. Qxf6+ {[%clk
0:01:58.8]} 22... Kg8 {[%clk 0:00:48.8]} 23. Qxe7 {[%clk 0:01:57.2]} 23... d4
{[%clk 0:00:14.1]} 24. Bh6 {[%clk 0:01:44.8]} 24... Qf5 {[%clk 0:00:03.8]} 25.
Qd6 {[%clk 0:01:38.2]} 1-0

[Event "Late-Titled-Tuesday-Blitz-February-20-2024"]
[Site "Chess.com"]
[Date "2024.02.20"]
[Round "3"]
[White "FredddieCroderg"]
[Black "jlf287"]
[Result "0-1"]
[WhiteElo "2195"]
[BlackElo "2521"]
[TimeControl "180+1"]
[EndTime "14:25:21 PST"]
[Termination "jlf287 won by resignation"]

1. e4 {[%clk 0:03:00.9]} 1... e5 {[%clk 0:02:48.7]} 2. Nf3 {[%clk 0:02:59.2]}
2... Nc6 {[%clk 0:02:48.5]} 3. Bb5 {[%clk 0:02:57.8]} 3... a6 {[%clk 0:02:47.9]}
4. Bxc6 {[%clk 0:02:57.7]} 4... dxc6 {[%clk 0:02:47.9]} 5. O-O {[%clk
0:02:58.2]} 5... Bg4 {[%clk 0:02:46.7]} 6. d3 {[%clk 0:02:57]} 6... Qf6 {[%clk
0:02:15.1]} 7. Nbd2 {[%clk 0:02:56.1]} 7... O-O-O {[%clk 0:02:00.5]} 8. Nc4
{[%clk 0:02:54.2]} 8... Bxf3 {[%clk 0:02:00.3]} 9. Qxf3 {[%clk 0:02:53.2]} 9...
Qxf3 {[%clk 0:02:00.5]} 10. gxf3 {[%clk 0:02:53]} 10... f6 {[%clk 0:02:00.7]}
11. f4 {[%clk 0:02:52.6]} 11... exf4 {[%clk 0:02:01.1]} 12. Bxf4 {[%clk
0:02:51.3]} 12... Ne7 {[%clk 0:01:53.5]} 13. Bg3 {[%clk 0:02:50.4]} 13... h5
{[%clk 0:01:53]} 14. h4 {[%clk 0:02:48.4]} 14... Ng6 {[%clk 0:01:51.5]} 15. f4
{[%clk 0:02:46.1]} 15... Bd6 {[%clk 0:01:30.2]} 16. Nxd6+ {[%clk 0:02:41.5]}
16... cxd6 {[%clk 0:01:30]} 17. f5 {[%clk 0:02:41.5]} 17... Ne5 {[%clk
0:01:28.5]} 18. Bxe5 {[%clk 0:02:41.3]} 18... dxe5 {[%clk 0:01:27.2]} 19. Kf2
{[%clk 0:02:41.1]} 19... Rhe8 {[%clk 0:01:21.2]} 20. Rg1 {[%clk 0:02:40.4]}
20... Re7 {[%clk 0:01:21.1]} 21. Rg6 {[%clk 0:02:40.1]} 21... Rdd7 {[%clk
0:01:20]} 22. Ke3 {[%clk 0:02:39.1]} 22... c5 {[%clk 0:01:18.5]} 23. b3 {[%clk
0:02:37]} 23... Kd8 {[%clk 0:01:15]} 24. a4 {[%clk 0:02:34.5]} 24... b6 {[%clk
0:01:12.6]} 25. Kd2 {[%clk 0:02:26.2]} 25... Ke8 {[%clk 0:01:12.6]} 26. Kc3
{[%clk 0:02:26]} 26... Kf8 {[%clk 0:01:10.4]} 27. Rag1 {[%clk 0:02:20.5]} 27...
Rd4 {[%clk 0:01:09.9]} 28. R1g3 {[%clk 0:02:15.5]} 28... Ra7 {[%clk 0:01:09.4]}
29. Rg1 {[%clk 0:02:14.1]} 29... b5 {[%clk 0:01:08.6]} 30. Ra1 {[%clk
0:02:12.9]} 30... bxa4 {[%clk 0:01:01.5]} 31. Rxa4 {[%clk 0:02:11.8]} 31... Rxa4
{[%clk 0:01:01.6]} 32. bxa4 {[%clk 0:02:11.8]} 32... Rb7 {[%clk 0:01:01.6]} 33.
Kc4 {[%clk 0:02:10.6]} 33... Rb4+ {[%clk 0:01:01.6]} 34. Kxc5 {[%clk 0:02:10.4]}
34... Rxa4 {[%clk 0:01:02.5]} 35. Rg1 {[%clk 0:02:06.3]} 35... Ra2 {[%clk
0:00:56.4]} 36. Rc1 {[%clk 0:02:05.1]} 36... Kf7 {[%clk 0:00:44.7]} 37. Kb6
{[%clk 0:02:04.4]} 37... Ke7 {[%clk 0:00:32.5]} 38. c4 {[%clk 0:02:04]} 38...
Kd7 {[%clk 0:00:31.8]} 39. c5 {[%clk 0:02:03.8]} 39... Rb2+ {[%clk 0:00:32]} 40.
Kxa6 {[%clk 0:01:56]} 40... Kc6 {[%clk 0:00:32.9]} 41. Rc3 {[%clk 0:01:45.9]}
41... Ra2+ {[%clk 0:00:32.2]} 0-1

[Event "Late-Titled-Tuesday-Blitz-February-20-2024"]
[Site "Chess.com"]
[Date "2024.02.20"]
[Round "3"]
[White "ProphetReborn"]
[Black "CarlosjPineror"]
[Result "1-0"]
[WhiteElo "2843"]
[BlackElo "2568"]
[TimeControl "180+1"]
[EndTime "14:25:28 PST"]
[Termination "ProphetReborn won by resignation"]

1. Nf3 {[%clk 0:03:00.9]} 1... d5 {[%clk 0:02:51.5]} 2. g3 {[%clk 0:02:56.2]}
2... Nf6 {[%clk 0:02:51.5]} 3. Bg2 {[%clk 0:02:56.4]} 3... h6 {[%clk 0:02:52.2]}
4. O-O {[%clk 0:02:49.7]} 4... c6 {[%clk 0:02:52.8]} 5. b3 {[%clk 0:02:49.1]}
5... Bf5 {[%clk 0:02:51.2]} 6. Bb2 {[%clk 0:02:49.7]} 6... e6 {[%clk 0:02:51.7]}
7. c4 {[%clk 0:02:50.1]} 7... Be7 {[%clk 0:02:51.7]} 8. d3 {[%clk 0:02:50.7]}
8... O-O {[%clk 0:02:51.9]} 9. Nbd2 {[%clk 0:02:51.4]} 9... Nbd7 {[%clk
0:02:52.5]} 10. Re1 {[%clk 0:02:51.8]} 10... a5 {[%clk 0:02:53.3]} 11. a3 {[%clk
0:02:51.4]} 11... Bh7 {[%clk 0:02:52.2]} 12. Qc2 {[%clk 0:02:51.7]} 12... Ne8
{[%clk 0:02:49.9]} 13. e4 {[%clk 0:02:50.8]} 13... Bf6 {[%clk 0:02:39.7]} 14. d4
{[%clk 0:02:30.6]} 14... b5 {[%clk 0:02:31.4]} 15. c5 {[%clk 0:02:26.8]} 15...
dxe4 {[%clk 0:02:23.2]} 16. Nxe4 {[%clk 0:02:26]} 16... Be7 {[%clk 0:02:23.5]}
17. Ne5 {[%clk 0:02:22.7]} 17... Qc7 {[%clk 0:02:22.5]} 18. Qe2 {[%clk
0:02:09.8]} 18... Rc8 {[%clk 0:02:07.1]} 19. Nxc6 {[%clk 0:02:08.5]} 19... Qxc6
{[%clk 0:02:07.4]} 20. Nf6+ {[%clk 0:02:08.3]} 20... Nexf6 {[%clk 0:02:07.9]}
21. Bxc6 {[%clk 0:02:08.5]} 21... Rxc6 {[%clk 0:02:08.1]} 22. Qxb5 {[%clk
0:02:09.3]} 22... Rfc8 {[%clk 0:02:06.3]} 23. Qxa5 {[%clk 0:02:09.1]} 23... Nd5
{[%clk 0:02:04.5]} 24. b4 {[%clk 0:02:08.5]} 24... Bf5 {[%clk 0:01:26.4]} 25. b5
{[%clk 0:02:07.5]} 25... R6c7 {[%clk 0:01:26.4]} 26. b6 {[%clk 0:02:08]} 26...
Rb7 {[%clk 0:01:26.3]} 27. a4 {[%clk 0:02:03.9]} 27... Nb8 {[%clk 0:01:26.1]}
28. Qd2 {[%clk 0:02:02.3]} 28... Bg5 {[%clk 0:01:19.7]} 29. f4 {[%clk
0:02:01.6]} 29... Bf6 {[%clk 0:01:20.3]} 30. a5 {[%clk 0:02:01.6]} 30... Na6
{[%clk 0:01:20.2]} 31. Qe2 {[%clk 0:02:01.4]} 31... Ndb4 {[%clk 0:01:18.5]} 32.
Bc3 {[%clk 0:02:01]} 32... Bd3 {[%clk 0:01:18.8]} 33. Qd2 {[%clk 0:01:59.9]}
33... Rd8 {[%clk 0:00:57.4]} 34. Bxb4 {[%clk 0:01:56.7]} 34... Nxb4 {[%clk
0:00:56.6]} 35. Qxb4 {[%clk 0:01:54.1]} 35... Rxd4 {[%clk 0:00:53]} 36. c6
{[%clk 0:01:45.7]} 36... Rb8 {[%clk 0:00:45.5]} 37. c7 {[%clk 0:01:45.1]} 37...
Re8 {[%clk 0:00:42.6]} 38. Qc5 {[%clk 0:01:42.6]} 38... Ba6 {[%clk 0:00:38.6]}
39. Qc6 {[%clk 0:01:39.8]} 39... Rf8 {[%clk 0:00:27.5]} 40. b7 {[%clk
0:01:38.6]} 1-0

[Event "Late-Titled-Tuesday-Blitz-February-20-2024"]
[Site "Chess.com"]
[Date "2024.02.20"]
[Round "3"]
[White "VincentKeymer"]
[Black "BabageldiAnnaberdiyev"]
[Result "1-0"]
[WhiteElo "3053"]
[BlackElo "2622"]
[TimeControl "180+1"]
[EndTime "14:25:30 PST"]
[Termination "VincentKeymer won by resignation"]

1. a3 {[%clk 0:03:00.9]} 1... e6 {[%clk 0:02:53.9]} 2. Nf3 {[%clk 0:02:59.7]}
2... d5 {[%clk 0:02:54.8]} 3. e3 {[%clk 0:02:59.6]} 3... f5 {[%clk 0:02:53.9]}
4. c4 {[%clk 0:02:59.2]} 4... Nf6 {[%clk 0:02:54.4]} 5. b4 {[%clk 0:02:59.8]}
5... c6 {[%clk 0:02:54]} 6. Bb2 {[%clk 0:02:59.9]} 6... Bd6 {[%clk 0:02:54.4]}
7. Be2 {[%clk 0:03:00]} 7... O-O {[%clk 0:02:54.5]} 8. O-O {[%clk 0:03:00.4]}
8... Nbd7 {[%clk 0:02:54.1]} 9. Nc3 {[%clk 0:03:01]} 9... Qe7 {[%clk 0:02:53.6]}
10. Rc1 {[%clk 0:03:00.8]} 10... a5 {[%clk 0:02:52.7]} 11. c5 {[%clk 0:02:53.3]}
11... Bc7 {[%clk 0:02:51]} 12. d4 {[%clk 0:02:53.8]} 12... e5 {[%clk 0:02:46.4]}
13. dxe5 {[%clk 0:02:46.2]} 13... Nxe5 {[%clk 0:02:47.3]} 14. Na4 {[%clk
0:02:41.3]} 14... Nxf3+ {[%clk 0:02:43.2]} 15. Bxf3 {[%clk 0:02:42.2]} 15... Ne4
{[%clk 0:02:42.7]} 16. g3 {[%clk 0:02:36.1]} 16... axb4 {[%clk 0:02:42.4]} 17.
axb4 {[%clk 0:02:35.8]} 17... Rxa4 {[%clk 0:02:37]} 18. Qxa4 {[%clk 0:02:34.2]}
18... Nd2 {[%clk 0:02:37.2]} 19. Qd1 {[%clk 0:02:16.7]} 19... Nxf1 {[%clk
0:02:35.7]} 20. Kxf1 {[%clk 0:02:17.6]} 20... Be5 {[%clk 0:02:20.8]} 21. Bxe5
{[%clk 0:02:15.6]} 21... Qxe5 {[%clk 0:02:21.7]} 22. Qd4 {[%clk 0:02:16.1]}
22... Qe7 {[%clk 0:02:07.8]} 23. Ra1 {[%clk 0:02:14.7]} 23... g5 {[%clk
0:01:55]} 24. b5 {[%clk 0:02:01.6]} 24... h6 {[%clk 0:01:35]} 25. Ra7 {[%clk
0:01:56.4]} 25... f4 {[%clk 0:01:06.4]} 26. bxc6 {[%clk 0:01:22.1]} 26... fxg3
{[%clk 0:01:05.7]} 27. Bxd5+ {[%clk 0:01:18]} 27... Kh7 {[%clk 0:01:02]} 28.
hxg3 {[%clk 0:01:16.7]} 1-0

[Event "Late-Titled-Tuesday-Blitz-February-20-2024"]
[Site "Chess.com"]
[Date "2024.02.20"]
[Round "3"]
[White "IlyaGrigorjev"]
[Black "ValeriyGrinev"]
[Result "1-0"]
[WhiteElo "2902"]
[BlackElo "2562"]
[TimeControl "180+1"]
[EndTime "14:25:33 PST"]
[Termination "IlyaGrigorjev won by resignation"]

1. e4 {[%clk 0:03:00.9]} 1... c5 {[%clk 0:02:59.2]} 2. Nf3 {[%clk 0:03:01]} 2...
e6 {[%clk 0:02:59.8]} 3. c3 {[%clk 0:03:00.1]} 3... Nf6 {[%clk 0:02:59]} 4. e5
{[%clk 0:02:59.8]} 4... Nd5 {[%clk 0:02:59.7]} 5. a3 {[%clk 0:03:00.4]} 5... d6
{[%clk 0:02:57.7]} 6. d4 {[%clk 0:03:00.8]} 6... cxd4 {[%clk 0:02:57.8]} 7. c4
{[%clk 0:03:01.2]} 7... Ne7 {[%clk 0:02:46.1]} 8. exd6 {[%clk 0:03:01.3]} 8...
Qxd6 {[%clk 0:02:45.9]} 9. Nc3 {[%clk 0:03:02]} 9... Nec6 {[%clk 0:02:36.1]} 10.
Nb5 {[%clk 0:02:59.8]} 10... Qd8 {[%clk 0:02:35.5]} 11. Bf4 {[%clk 0:02:58.1]}
11... Na6 {[%clk 0:02:35.5]} 12. Nbxd4 {[%clk 0:02:39]} 12... Nxd4 {[%clk
0:02:12.3]} 13. Qxd4 {[%clk 0:02:39.9]} 13... Qxd4 {[%clk 0:02:08.7]} 14. Nxd4
{[%clk 0:02:40.8]} 14... Bd7 {[%clk 0:02:08.8]} 15. b4 {[%clk 0:02:11.8]} 15...
Be7 {[%clk 0:02:05.9]} 16. Be2 {[%clk 0:02:11.1]} 16... Bf6 {[%clk 0:02:05.2]}
17. Be3 {[%clk 0:02:09.5]} 17... Rc8 {[%clk 0:01:54.8]} 18. O-O {[%clk
0:02:07.2]} 18... Nb8 {[%clk 0:01:55]} 19. Rac1 {[%clk 0:02:01.7]} 19... a6
{[%clk 0:01:52.2]} 20. b5 {[%clk 0:01:46]} 20... e5 {[%clk 0:01:37.7]} 21. Nb3
{[%clk 0:01:44.5]} 21... Be7 {[%clk 0:01:28.7]} 22. a4 {[%clk 0:01:44.1]} 22...
Bb4 {[%clk 0:00:50.1]} 23. Bf3 {[%clk 0:01:16.6]} 23... Rc7 {[%clk 0:00:17.4]}
24. Bb6 {[%clk 0:01:12.5]} 1-0

[Event "Late-Titled-Tuesday-Blitz-February-20-2024"]
[Site "Chess.com"]
[Date "2024.02.20"]
[Round "3"]
[White "SnekkerAndersen"]
[Black "cmunda"]
[Result "1-0"]
[WhiteElo "2626"]
[BlackElo "2131"]
[TimeControl "180+1"]
[EndTime "14:25:36 PST"]
[Termination "SnekkerAndersen won by resignation"]

1. d4 {[%clk 0:02:59.8]} 1... e6 {[%clk 0:02:59.1]} 2. e4 {[%clk 0:02:56.1]}
2... d5 {[%clk 0:02:56.4]} 3. Nc3 {[%clk 0:02:54.3]} 3... Bb4 {[%clk 0:02:55.6]}
4. e5 {[%clk 0:02:51.8]} 4... Ne7 {[%clk 0:02:50.3]} 5. a3 {[%clk 0:02:49.1]}
5... Bxc3+ {[%clk 0:02:50.2]} 6. bxc3 {[%clk 0:02:50]} 6... b6 {[%clk
0:02:47.7]} 7. Qg4 {[%clk 0:02:44.1]} 7... Kf8 {[%clk 0:02:38]} 8. h4 {[%clk
0:02:37.8]} 8... h5 {[%clk 0:02:37.8]} 9. Qf4 {[%clk 0:02:26.9]} 9... Ba6 {[%clk
0:02:35.7]} 10. Nf3 {[%clk 0:02:26.6]} 10... Ng6 {[%clk 0:02:33.4]} 11. Qe3
{[%clk 0:02:22.6]} 11... Bxf1 {[%clk 0:02:32.1]} 12. Kxf1 {[%clk 0:02:23.5]}
12... Nd7 {[%clk 0:02:32.2]} 13. a4 {[%clk 0:02:22.6]} 13... c5 {[%clk
0:02:26.6]} 14. Ba3 {[%clk 0:02:22.1]} 14... Kg8 {[%clk 0:02:25.7]} 15. g3
{[%clk 0:02:22]} 15... Qc7 {[%clk 0:02:23.6]} 16. Kg2 {[%clk 0:02:21.5]} 16...
Rc8 {[%clk 0:02:18.7]} 17. Ng5 {[%clk 0:02:20.2]} 17... cxd4 {[%clk 0:02:10.2]}
18. cxd4 {[%clk 0:02:21.1]} 18... Qc3 {[%clk 0:02:07.8]} 19. Rhc1 {[%clk
0:02:14.9]} 19... Ne7 {[%clk 0:02:07.1]} 20. Bxe7 {[%clk 0:02:13.6]} 20... Rh6
{[%clk 0:01:52.2]} 21. Qxc3 {[%clk 0:02:09.2]} 21... Rxc3 {[%clk 0:01:52]} 22.
Ra3 {[%clk 0:02:09.3]} 22... Rc4 {[%clk 0:01:49.4]} 23. c3 {[%clk 0:02:06.2]}
23... Rc6 {[%clk 0:01:40.5]} 24. Rb1 {[%clk 0:02:03]} 24... f6 {[%clk 0:01:40]}
25. Nf3 {[%clk 0:02:01.8]} 25... Kf7 {[%clk 0:01:39.5]} 26. Bd6 {[%clk 0:02:02]}
26... Rh8 {[%clk 0:01:35]} 27. a5 {[%clk 0:02:01.5]} 27... Rhc8 {[%clk
0:01:34.1]} 28. axb6 {[%clk 0:01:59.5]} 28... axb6 {[%clk 0:01:34.3]} 29. Rbb3
{[%clk 0:01:52.1]} 29... Ke8 {[%clk 0:01:30.1]} 30. Bb4 {[%clk 0:01:51.7]} 30...
R6c7 {[%clk 0:01:22.1]} 31. Ra6 {[%clk 0:01:50.9]} 31... Rb7 {[%clk 0:01:13.2]}
32. Rba3 {[%clk 0:01:50.8]} 32... Nb8 {[%clk 0:01:10.2]} 33. Ra7 {[%clk
0:01:50.7]} 33... Rcc7 {[%clk 0:01:05]} 34. Rxb7 {[%clk 0:01:49.3]} 34... Rxb7
{[%clk 0:01:05.3]} 35. Ra8 {[%clk 0:01:47.7]} 35... Kf7 {[%clk 0:01:05.1]} 36.
Bd6 {[%clk 0:01:45.2]} 36... Nc6 {[%clk 0:01:02]} 37. Rf8+ {[%clk 0:01:37.1]}
37... Kg6 {[%clk 0:01:02]} 38. Re8 {[%clk 0:01:36.4]} 38... Kf7 {[%clk
0:01:00.2]} 39. Rc8 {[%clk 0:01:36.6]} 39... Na5 {[%clk 0:00:59.8]} 40. Nd2
{[%clk 0:01:24.9]} 40... Nc6 {[%clk 0:00:40]} 41. Rxc6 {[%clk 0:01:24.2]} 1-0

[Event "Late-Titled-Tuesday-Blitz-February-20-2024"]
[Site "Chess.com"]
[Date "2024.02.20"]
[Round "3"]
[White "miraitrunks"]
[Black "KetiTsatsalashvili"]
[Result "0-1"]
[WhiteElo "2201"]
[BlackElo "2441"]
[TimeControl "180+1"]
[EndTime "14:25:44 PST"]
[Termination "KetiTsatsalashvili won by resignation"]

1. d4 {[%clk 0:02:53.7]} 1... Nf6 {[%clk 0:02:59.7]} 2. Nf3 {[%clk 0:02:53.9]}
2... e6 {[%clk 0:02:59.5]} 3. Bf4 {[%clk 0:02:54]} 3... d5 {[%clk 0:03:00]} 4.
e3 {[%clk 0:02:54.4]} 4... c5 {[%clk 0:03:00.2]} 5. c3 {[%clk 0:02:53.6]} 5...
Nc6 {[%clk 0:03:00.6]} 6. Bd3 {[%clk 0:02:53.4]} 6... Bd6 {[%clk 0:03:01]} 7.
Bg3 {[%clk 0:02:52.8]} 7... cxd4 {[%clk 0:03:01]} 8. exd4 {[%clk 0:02:52.7]}
8... Qc7 {[%clk 0:02:59.1]} 9. Qe2 {[%clk 0:02:52.6]} 9... Bxg3 {[%clk
0:02:56.2]} 10. hxg3 {[%clk 0:02:53.5]} 10... h6 {[%clk 0:02:55.6]} 11. Nbd2
{[%clk 0:02:52.9]} 11... Bd7 {[%clk 0:02:53.7]} 12. Ne5 {[%clk 0:02:44.5]} 12...
Nxe5 {[%clk 0:02:42.3]} 13. dxe5 {[%clk 0:02:45.4]} 13... Ng8 {[%clk 0:02:42.7]}
14. f4 {[%clk 0:02:39.6]} 14... Ne7 {[%clk 0:02:43.2]} 15. Qg4 {[%clk
0:02:38.2]} 15... g6 {[%clk 0:02:07.3]} 16. Nf3 {[%clk 0:02:27.7]} 16... Qb6
{[%clk 0:02:04.6]} 17. O-O-O {[%clk 0:02:25.9]} 17... Bb5 {[%clk 0:01:56.7]} 18.
Bc2 {[%clk 0:02:05.8]} 18... O-O-O {[%clk 0:01:50]} 19. Nd4 {[%clk 0:02:03.5]}
19... Bd7 {[%clk 0:01:46.9]} 20. Qh4 {[%clk 0:01:44.6]} 20... Rde8 {[%clk
0:01:46.6]} 21. Qf6 {[%clk 0:01:42.7]} 21... Rh7 {[%clk 0:01:44.6]} 22. Nf3
{[%clk 0:01:34.9]} 22... Kb8 {[%clk 0:01:31.2]} 23. Ng5 {[%clk 0:01:28.9]} 23...
Ng8 {[%clk 0:01:30.1]} 24. Nxh7 {[%clk 0:01:08]} 24... Nxf6 {[%clk 0:01:29.9]}
25. Nxf6 {[%clk 0:01:08.9]} 25... Rd8 {[%clk 0:01:30.1]} 26. Rxh6 {[%clk
0:01:08]} 26... Qe3+ {[%clk 0:01:28.5]} 27. Kb1 {[%clk 0:01:08.1]} 27... Qxg3
{[%clk 0:01:28.5]} 28. Rh7 {[%clk 0:01:01.6]} 28... Bb5 {[%clk 0:01:11.5]} 29.
Rxf7 {[%clk 0:00:54.9]} 29... Be2 {[%clk 0:01:11.2]} 30. Rc1 {[%clk 0:00:39.2]}
30... Bd3 {[%clk 0:01:07.1]} 31. Nd7+ {[%clk 0:00:34.1]} 31... Ka8 {[%clk
0:01:07]} 32. Nc5 {[%clk 0:00:34.3]} 32... Bxc2+ {[%clk 0:01:04.1]} 33. Kxc2
{[%clk 0:00:35.2]} 33... Qf2+ {[%clk 0:01:02.5]} 34. Kb3 {[%clk 0:00:31.5]}
34... Qxc5 {[%clk 0:01:03.4]} 0-1

[Event "Late-Titled-Tuesday-Blitz-February-20-2024"]
[Site "Chess.com"]
[Date "2024.02.20"]
[Round "3"]
[White "Grischuk"]
[Black "LuckyTiger"]
[Result "1-0"]
[WhiteElo "3075"]
[BlackElo "2778"]
[TimeControl "180+1"]
[EndTime "14:25:47 PST"]
[Termination "Grischuk won by resignation"]

1. d4 {[%clk 0:03:00.9]} 1... Nf6 {[%clk 0:02:59.9]} 2. c4 {[%clk 0:03:01]} 2...
c5 {[%clk 0:03:00.4]} 3. d5 {[%clk 0:03:00.4]} 3... b5 {[%clk 0:03:01.1]} 4.
cxb5 {[%clk 0:02:58.1]} 4... a6 {[%clk 0:03:01.2]} 5. bxa6 {[%clk 0:02:57.5]}
5... g6 {[%clk 0:03:01.7]} 6. Nc3 {[%clk 0:02:56.9]} 6... d6 {[%clk 0:03:00.8]}
7. e4 {[%clk 0:02:51]} 7... Bxa6 {[%clk 0:03:00.5]} 8. Bxa6 {[%clk 0:02:49.5]}
8... Nxa6 {[%clk 0:03:01.4]} 9. Nf3 {[%clk 0:02:49.5]} 9... Bg7 {[%clk
0:03:02.2]} 10. O-O {[%clk 0:02:49]} 10... O-O {[%clk 0:03:02.8]} 11. Re1 {[%clk
0:02:44.2]} 11... Qb6 {[%clk 0:02:46.5]} 12. h3 {[%clk 0:02:34.9]} 12... Nb4
{[%clk 0:02:39]} 13. a3 {[%clk 0:02:29.4]} 13... Na6 {[%clk 0:02:21.1]} 14. e5
{[%clk 0:02:24.8]} 14... Nd7 {[%clk 0:02:19.7]} 15. Bg5 {[%clk 0:01:33.5]} 15...
Nxe5 {[%clk 0:02:13.9]} 16. Nxe5 {[%clk 0:01:33.3]} 16... Bxe5 {[%clk
0:02:14.8]} 17. Bxe7 {[%clk 0:01:33.3]} 17... Rfe8 {[%clk 0:02:15.5]} 18. Rxe5
{[%clk 0:01:33.8]} 18... dxe5 {[%clk 0:02:10.8]} 19. d6 {[%clk 0:01:34.7]} 19...
Nc7 {[%clk 0:01:29.5]} 20. Ne4 {[%clk 0:01:02.5]} 20... f5 {[%clk 0:00:43.2]}
21. Nf6+ {[%clk 0:01:00.1]} 21... Kf7 {[%clk 0:00:43.9]} 22. Nxe8 {[%clk
0:00:55]} 22... Rxe8 {[%clk 0:00:44.8]} 23. d7 {[%clk 0:00:48.6]} 23... Kxe7
{[%clk 0:00:41.1]} 24. dxe8=Q+ {[%clk 0:00:48.7]} 24... Kxe8 {[%clk 0:00:39.5]}
25. Qe2 {[%clk 0:00:45.6]} 1-0